Workbook

Sheet Лист1
A1: Школа | C1: МБОУ "Гимназия №29" | F1: Утвердил: | G1: должность | H1: зав производством
A2: Типовое примерное меню приготавливаемых блюд | G2: фамилия | H2: Хуснутдинова Альбина Ринатовна
A3: Возрастная категория | E3: 7-11 лет | G3: дата | H3: 24 | I3: 11 | J3: 2025
H4: день | I4: месяц | J4: год
A5: Неделя | B5: День недели | C5: Прием пищи | D5: Раздел меню | E5: Блюда | F5: Вес блюда, г | G5: Белки | H5: Жиры | I5: Углеводы | J5: Калорийность | K5: № рецептуры | L5: Цена
A6: 1 | B6: 1 | C6: Завтрак | D6: Гор.блюдо | E6: Колбасные изд. отварные (сосиски) с овощ.(зел.гор) | F6: 90 | G6: 9.29 | H6: 12.32 | I6: 3.85 | J6: 163.42 | K6: ТТК-358н | L6: 37.54
D7: Салат | E7: Салат "Капуста квашеная" | F7: 60 | G7: 1.06 | H7: 3.01 | I7: 5.11 | J7: 51.73 | K7: ТТК-357н | L7: 5.89
D8: гор.напиток | E8: Компот "Плодово-ягодный" ассорти | F8: 200 | G8: 0.01 | H8: 0.01 | I8: 16.66 | J8: 66.73 | K8: ТТК-356н | L8: 6.82
D9: хлеб | E9: Хлеб "Рябинушка" | F9: 30 | G9: 2.28 | H9: 0.27 | I9: 14.91 | J9: 71.19 | L9: 3.09
D12: гарнир | E12: Каша рисовая вязкая | F12: 150 | G12: 2.31 | H12: 4.13 | I12: 22.97 | J12: 138.28 | K12: 510/04 | L12: 8.05
D13: итого | F13: =SUM(F6:F12) -> 530 | G13: =SUM(G6:G12) -> 14.95 | H13: =SUM(H6:H12) -> 19.74 | I13: =SUM(I6:I12) -> 63.5 | J13: =SUM(J6:J12) -> 491.35
A14: =A6 -> 1 | B14: =B6 -> 1 | C14: Завтрак 2 | D14: фрукты
D17: итого | F17: =SUM(F14:F16) -> 0 | G17: =SUM(G14:G16) -> 0 | H17: 0 | I17: 0 | J17: 0 | L17: =SUM(L14:L22) -> 0
A18: =A6 -> 1 | B18: =B6 -> 1 | C18: Обед | D18: закуска
D19: 1 блюдо
D20: 2 блюдо
D21: гарнир
D22: напиток
D23: хлеб бел.
D24: хлеб черн.
D27: итого | F27: =SUM(F18:F26) -> 0 | G27: =SUM(G18:G26) -> 0 | H27: 0 | I27: 0 | J27: 0 | L27: =SUM(L18:L26) -> 0
A28: =A6 -> 1 | B28: =B6 -> 1 | C28: Полдник | D28: булочное
D29: напиток
D32: итого | F32: =SUM(F28:F31) -> 0 | G32: =SUM(G28:G31) -> 0 | H32: 0 | I32: 0 | J32: 0 | L32: =SUM(L28:L31) -> 0
A33: =A6 -> 1 | B33: =B6 -> 1 | C33: Ужин | D33: гор.блюдо
D34: гарнир
D35: напиток
D36: хлеб
D39: итого | F39: =SUM(F33:F38) -> 0 | G39: =SUM(G33:G38) -> 0 | H39: 0 | I39: 0 | J39: 0 | L39: =SUM(L33:L41) -> 0
A40: =A6 -> 1 | B40: =B6 -> 1 | C40: Ужин 2 | D40: кисломол.
D41: булочное
D42: напиток
D43: фрукты
D46: итого | F46: =SUM(F40:F45) -> 0 | G46: =SUM(G40:G45) -> 0 | H46: 0 | I46: 0 | J46: 0 | L46: =SUM(L40:L48) -> 0
A47: =A6 -> 1 | B47: =B6 -> 1 | C47: Итого за день: | F47: =F13+F17+F27+F32+F39+F46 -> 530 | G47: =G13+G17+G27+G32+G39+G46 -> 14.95 | H47: 19.74 | I47: 63.5 | J47: 491.35 | L47: 186.9
A48: 1 | B48: 2 | C48: Завтрак | D48: гарнир | E48: Макароны отварные | F48: 150 | G48: 5.3 | H48: 4.96 | I48: 36.41 | J48: 211.45 | K48: ТТК - 181а | L48: 3.59
D49: гор блюдо | E49: Мясо "Нежное" в соусе | F49: 90 | G49: 13.06 | H49: 11.12 | I49: 3.68 | J49: 167.03 | K49: ТТК-992 | L49: 64.27
D50: гор.напиток | E50: Чай "Витаминный" полусладкий | F50: 200 | G50: 0.16 | H50: 0.05 | I50: 5.79 | J50: 24.23 | K50: ТТК-253к | L50: 4.86
D51: хлеб | E51: Хлеб "Рябинушка" | F51: 30 | G51: 2.28 | H51: 0.27 | I51: 14.91 | J51: 71.19 | L51: 3.09
D52: фрукты | E52: Десерт фруктовый Яблоко | F52: 100 | G52: 0.4 | H52: 0.4 | I52: 9 | J52: 41.2 | K52: ТТК-495н | L52: 11.99
D55: итого | F55: =SUM(F48:F54) -> 570 | G55: =SUM(G48:G54) -> 21.2 | H55: =SUM(H48:H54) -> 16.8 | I55: =SUM(I48:I54) -> 69.79 | J55: =SUM(J48:J54) -> 515.1 | L55: =SUM(L48:L54) -> 87.8
A56: =A48 -> 1 | B56: =B48 -> 2 | C56: Завтрак 2 | D56: фрукты
D59: итого | F59: =SUM(F56:F58) -> 0 | G59: =SUM(G56:G58) -> 0 | H59: =SUM(H56:H58) -> 0 | I59: =SUM(I56:I58) -> 0 | J59: =SUM(J56:J58) -> 0 | L59: =SUM(L56:L64) -> 0
A60: =A48 -> 1 | B60: =B48 -> 2 | C60: Обед | D60: закуска
D61: 1 блюдо
D62: 2 блюдо
D63: гарнир
D64: напиток
D65: хлеб бел.
D66: хлеб черн.
D69: итого | F69: =SUM(F60:F68) -> 0 | G69: =SUM(G60:G68) -> 0 | H69: =SUM(H60:H68) -> 0 | I69: =SUM(I60:I68) -> 0 | J69: =SUM(J60:J68) -> 0 | L69: =L60+L61+L62+L63+L64+L65+L66+L67+L68 -> 0
A70: =A48 -> 1 | B70: =B48 -> 2 | C70: Полдник | D70: булочное
D71: напиток
D74: итого | F74: =SUM(F70:F73) -> 0 | G74: =SUM(G70:G73) -> 0 | H74: =SUM(H70:H73) -> 0 | I74: =SUM(I70:I73) -> 0 | J74: =SUM(J70:J73) -> 0 | L74: =SUM(L70:L73) -> 0
A75: =A48 -> 1 | B75: =B48 -> 2 | C75: Ужин | D75: гор.блюдо
D76: гарнир
D77: напиток
D78: хлеб
D81: итого | F81: =SUM(F75:F80) -> 0 | G81: =SUM(G75:G80) -> 0 | H81: =SUM(H75:H80) -> 0 | I81: =SUM(I75:I80) -> 0 | J81: =SUM(J75:J80) -> 0 | L81: =SUM(L75:L83) -> 0
A82: =A48 -> 1 | B82: =B48 -> 2 | C82: Ужин 2 | D82: кисломол.
D83: булочное
D84: напиток
D85: фрукты
D88: итого | F88: =SUM(F82:F87) -> 0 | G88: =SUM(G82:G87) -> 0 | H88: =SUM(H82:H87) -> 0 | I88: =SUM(I82:I87) -> 0 | J88: =SUM(J82:J87) -> 0 | L88: =SUM(F88:K88) -> 0
A89: =A48 -> 1 | B89: =B48 -> 2 | C89: Итого за день: | F89: =F55+F59+F69+F74+F81+F88 -> 570 | G89: =G55+G59+G69+G74+G81+G88 -> 21.2 | H89: =H55+H59+H69+H74+H81+H88 -> 16.8 | I89: =I55+I59+I69+I74+I81+I88 -> 69.79 | J89: =J55+J59+J69+J74+J81+J88 -> 515.1 | L89: 186.9
A90: 1 | B90: 3 | C90: Завтрак | D90: Гор.блюдо | E90: Палочки рыбо-крупяные из минтая с овощ.(кукур.зам) | F90: 90 | G90: 10.8 | H90: 7.84 | I90: 17.33 | J90: 183.07 | K90: ТТК 491н | L90: 29.32
D91: гарнир | E91: Пюре картофельное | F91: 150 | G91: 3.31 | H91: 4.91 | I91: 22.12 | J91: 145.93 | K91: 520/04 | L91: 20.02
D92: гор.напиток | E92: Напиток "Плодово-ягодный" из урюка | F92: 200 | G92: 0.51 | H92: 0.08 | I92: 19.38 | J92: 80.23 | K92: ТТК-258к | L92: 3.81
D93: хлеб | E93: Хлеб "Рябинушка" | F93: 30 | G93: 2.28 | H93: 0.27 | I93: 14.91 | J93: 71.19 | L93: 3.09
D94: фрукты
D95: Салат | E95: Салат из свеклы отварной | F95: 60 | G95: 1.09 | H95: 3.67 | I95: 6.4 | J95: 62.98 | K95: 52/11 | L95: 2.87
D97: итого | F97: =SUM(F90:F96) -> 530 | G97: =SUM(G90:G96) -> 17.99 | H97: =SUM(H90:H96) -> 16.77 | I97: =SUM(I90:I96) -> 80.14 | J97: =SUM(J90:J96) -> 543.4 | L97: =SUM(L90:L96) -> 59.11
A98: =A90 -> 1 | B98: =B90 -> 3 | C98: Завтрак 2 | D98: фрукты
D101: итого | F101: =SUM(F98:F100) -> 0 | G101: =SUM(G98:G100) -> 0 | H101: =SUM(H98:H100) -> 0 | I101: =SUM(I98:I100) -> 0 | J101: =SUM(J98:J100) -> 0 | L101: =SUM(L98:L106) -> 0
A102: =A90 -> 1 | B102: =B90 -> 3 | C102: Обед | D102: закуска
D103: 1 блюдо
D104: 2 блюдо
D105: гарнир
D106: напиток
D107: хлеб бел.
D108: хлеб черн.
D111: итого | F111: =SUM(F102:F110) -> 0 | G111: =SUM(G102:G110) -> 0 | H111: =SUM(H102:H110) -> 0 | I111: =SUM(I102:I110) -> 0 | J111: =SUM(J102:J110) -> 0 | L111: =SUM(L108:L116) -> 0
A112: =A90 -> 1 | B112: =B90 -> 3 | C112: Полдник | D112: булочное
D113: напиток
D116: итого | F116: =SUM(F112:F115) -> 0 | G116: =SUM(G112:G115) -> 0 | H116: =SUM(H112:H115) -> 0 | I116: =SUM(I112:I115) -> 0 | J116: =SUM(J112:J115) -> 0 | L116: =SUM(L109:L115) -> 0
A117: =A90 -> 1 | B117: =B90 -> 3 | C117: Ужин | D117: гор.блюдо
D118: гарнир
D119: напиток
D120: хлеб
D123: итого | F123: =SUM(F117:F122) -> 0 | G123: =SUM(G117:G122) -> 0 | H123: =SUM(H117:H122) -> 0 | I123: =SUM(I117:I122) -> 0 | J123: =SUM(J117:J122) -> 0 | L123: =SUM(L117:L125) -> 0
A124: =A90 -> 1 | B124: =B90 -> 3 | C124: Ужин 2 | D124: кисломол.
D125: булочное
D126: напиток
D127: фрукты
D130: итого | F130: =SUM(F124:F129) -> 0 | G130: =SUM(G124:G129) -> 0 | H130: =SUM(H124:H129) -> 0 | I130: =SUM(I124:I129) -> 0 | J130: =SUM(J124:J129) -> 0 | L130: =SUM(L124:L132) -> 0
A131: =A90 -> 1 | B131: =B90 -> 3 | C131: Итого за день: | F131: =F97+F101+F111+F116+F123+F130 -> 530 | G131: =G97+G101+G111+G116+G123+G130 -> 17.99 | H131: =H97+H101+H111+H116+H123+H130 -> 16.77 | I131: =I97+I101+I111+I116+I123+I130 -> 80.14 | J131: =J97+J101+J111+J116+J123+J130 -> 543.4 | L131: 186.9
A132: 1 | B132: 4 | C132: Завтрак | D132: Гор.блюдо | E132: Запеканка из творога "Ягодка" со сгущ.молоком | F132: 170 | G132: 30.16 | H132: 14.82 | I132: 44.5 | J132: 432.03 | K132: ТТК - 521н | L132: 78.31
D133: Фрукты | E133: Десерт фруктовый Яблоко | F133: 100 | G133: 0.4 | H133: 0.4 | I133: 9 | J133: 41.2 | K133: ТТК-495н | L133: 11.99
D134: гор.напиток | E134: Чай с лимоном с пряником в ассортименте | F134: 237 | G134: 2.01 | H134: 1.35 | I134: 37.27 | J134: 169.26 | K134: 686/04 | L134: 9.63
D135: хлеб | E135: Хлеб "Рябинушка" | F135: 30 | G135: 2.28 | H135: 0.27 | I135: 14.91 | J135: 71.19 | L135: 3.09
D136: фрукты
D140: итого | F140: =SUM(F132:F137) -> 537 | G140: =SUM(G132:G137) -> 34.85 | H140: =SUM(H132:H137) -> 16.84 | I140: =SUM(I132:I137) -> 105.68 | J140: =SUM(J132:J137) -> 713.68 | L140: =SUM(L132:L137) -> 103.02
A141: =A132 -> 1 | B141: =B132 -> 4 | C141: Завтрак 2 | D141: фрукты
D144: итого | F144: =SUM(F141:F143) -> 0 | G144: =SUM(G141:G143) -> 0 | H144: =SUM(H141:H143) -> 0 | I144: =SUM(I141:I143) -> 0 | J144: =SUM(J141:J143) -> 0 | L144: =SUM(L141:L149) -> 0
A145: =A132 -> 1 | B145: =B132 -> 4 | C145: Обед | D145: закуска
D146: 1 блюдо
D147: 2 блюдо
D148: гарнир
D149: напиток
D150: хлеб бел.
D151: хлеб черн.
D154: итого | F154: =SUM(F145:F153) -> 0 | G154: =SUM(G145:G153) -> 0 | H154: =SUM(H145:H153) -> 0 | I154: =SUM(I145:I153) -> 0 | J154: =SUM(J145:J153) -> 0 | L154: =SUM(L151:L159) -> 0
A155: =A132 -> 1 | B155: =B132 -> 4 | C155: Полдник | D155: булочное
D156: напиток
D159: итого | F159: =SUM(F155:F158) -> 0 | G159: =SUM(G155:G158) -> 0 | H159: =SUM(H155:H158) -> 0 | I159: =SUM(I155:I158) -> 0 | J159: =SUM(J155:J158) -> 0 | L159: =SUM(L152:L158) -> 0
A160: =A132 -> 1 | B160: =B132 -> 4 | C160: Ужин | D160: гор.блюдо
D161: гарнир
D162: напиток
D163: хлеб
D166: итого | F166: =SUM(F160:F165) -> 0 | G166: =SUM(G160:G165) -> 0 | H166: =SUM(H160:H165) -> 0 | I166: =SUM(I160:I165) -> 0 | J166: =SUM(J160:J165) -> 0 | L166: =SUM(L160:L168) -> 0
A167: =A132 -> 1 | B167: =B132 -> 4 | C167: Ужин 2 | D167: кисломол.
D168: булочное
D169: напиток
D170: фрукты
D173: итого | F173: =SUM(F167:F172) -> 0 | G173: =SUM(G167:G172) -> 0 | H173: =SUM(H167:H172) -> 0 | I173: =SUM(I167:I172) -> 0 | J173: =SUM(J167:J172) -> 0 | L173: =SUM(L167:L175) -> 0
A174: =A132 -> 1 | B174: =B132 -> 4 | C174: Итого за день: | F174: =F140+F144+F154+F159+F166+F173 -> 537 | G174: =G140+G144+G154+G159+G166+G173 -> 34.85 | H174: =H140+H144+H154+H159+H166+H173 -> 16.84 | I174: =I140+I144+I154+I159+I166+I173 -> 105.68 | J174: =J140+J144+J154+J159+J166+J173 -> 713.68 | L174: 186.9
A175: 1 | B175: 5 | C175: Завтрак | D175: гор.блюдо | E175: Митболы из говядины в соусе томатном | F175: 110 | G175: 6.43 | H175: 8.48 | I175: 11.75 | J175: 149.03 | K175: ТТК №550н | L175: 39.74
D176: салат | E176: Салат из моркови с сахаром | F176: 60 | G176: 0.75 | H176: 0.06 | I176: 6.97 | J176: 31.39 | K176: 62/11 | L176: 5.23
D177: гор.напиток | E177: Кофейный напиток полусладкий | F177: 200 | G177: 3.02 | H177: 5.22 | I177: 15.9 | J177: 122.65 | K177: ТТК-343н | L177: 8.96
D178: хлеб | E178: Хлеб "Рябинушка" | F178: 30 | G178: 2.28 | H178: 0.27 | I178: 14.91 | J178: 71.19 | L178: 3.09
D180: гарнир | E180: Пюре из бобовых "Янтарное" | F180: 150 | G180: 16.96 | H180: 4.98 | I180: 37.41 | J180: 262.32 | K180: ТТК-446 | L180: 8.84
D182: итого | F182: =SUM(F175:F181) -> 550 | G182: =SUM(G175:G181) -> 29.44 | H182: =SUM(H175:H181) -> 19.01 | I182: =SUM(I175:I181) -> 86.94 | J182: =SUM(J175:J181) -> 636.58 | L182: =SUM(L175:L181) -> 65.86
A183: =A175 -> 1 | B183: =B175 -> 5 | C183: Завтрак 2 | D183: фрукты
D186: итого | F186: =SUM(F183:F185) -> 0 | G186: =SUM(G183:G185) -> 0 | H186: =SUM(H183:H185) -> 0 | I186: =SUM(I183:I185) -> 0 | J186: =SUM(J183:J185) -> 0 | L186: =SUM(L183:L191) -> 0
A187: =A175 -> 1 | B187: =B175 -> 5 | C187: Обед | D187: закуска
D188: 1 блюдо
D189: 2 блюдо
D190: гарнир
D191: напиток
D192: хлеб бел.
D193: хлеб черн.
D196: итого | F196: =SUM(F187:F195) -> 0 | G196: =SUM(G187:G195) -> 0 | H196: =SUM(H187:H195) -> 0 | I196: =SUM(I187:I195) -> 0 | J196: =SUM(J187:J195) -> 0 | L196: =SUM(L193:L201) -> 0
A197: =A175 -> 1 | B197: =B175 -> 5 | C197: Полдник | D197: булочное
D198: напиток
D201: итого | F201: =SUM(F197:F200) -> 0 | G201: =SUM(G197:G200) -> 0 | H201: =SUM(H197:H200) -> 0 | I201: =SUM(I197:I200) -> 0 | J201: =SUM(J197:J200) -> 0 | L201: =SUM(L194:L200) -> 0
A202: =A175 -> 1 | B202: =B175 -> 5 | C202: Ужин | D202: гор.блюдо
D203: гарнир
D204: напиток
D205: хлеб
D208: итого | F208: =SUM(F202:F207) -> 0 | G208: =SUM(G202:G207) -> 0 | H208: =SUM(H202:H207) -> 0 | I208: =SUM(I202:I207) -> 0 | J208: =SUM(J202:J207) -> 0 | L208: =SUM(L202:L210) -> 0
A209: =A175 -> 1 | B209: =B175 -> 5 | C209: Ужин 2 | D209: кисломол.
D210: булочное
D211: напиток
D212: фрукты
D215: итого | F215: =SUM(F209:F214) -> 0 | G215: =SUM(G209:G214) -> 0 | H215: =SUM(H209:H214) -> 0 | I215: =SUM(I209:I214) -> 0 | J215: =SUM(J209:J214) -> 0 | L215: =SUM(L209:L217) -> 0
A216: =A175 -> 1 | B216: =B175 -> 5 | C216: Итого за день: | F216: =F182+F186+F196+F201+F208+F215 -> 550 | G216: =G182+G186+G196+G201+G208+G215 -> 29.44 | H216: =H182+H186+H196+H201+H208+H215 -> 19.01 | I216: =I182+I186+I196+I201+I208+I215 -> 86.94 | J216: =J182+J186+J196+J201+J208+J215 -> 636.58 | L216: 186.9
A217: 1 | B217: 6 | C217: Завтрак | D217: гор.блюдо | E217: Котлеты "Любимые" с овощами (фасоль стр.) | F217: 90 | G217: 8.92 | H217: 11.85 | I217: 7.65 | J217: 172.91 | K217: ттк№-201н | L217: 26.97
D218: гарнир | E218: Каша гречневая вязкая | F218: 150 | G218: 4.59 | H218: 5.35 | I218: 24.79 | J218: 165.69 | K218: ТТК-187а | L218: 2.63
D219: гор.напиток | E219: Чай полусладкий | F219: 200 | G219: 0.2 | H219: 0.05 | I219: 5.06 | J219: 21.5 | K219: ТТК-475 | L219: 1.08
D220: хлеб | E220: Хлеб "Рябинушка" | F220: 30 | G220: 2.28 | H220: 0.27 | I220: 14.91 | J220: 71.19 | L220: 3.09
D221: фрукты | E221: Десерт фруктовый Яблоко | F221: 100 | G221: 0.4 | H221: 0.4 | I221: 9 | J221: 41.2 | K221: ТТК-495н | L221: 11.99
D224: итого | F224: =SUM(F217:F223) -> 570 | G224: =SUM(G217:G223) -> 16.39 | H224: =SUM(H217:H223) -> 17.92 | I224: =SUM(I217:I223) -> 61.41 | J224: =SUM(J217:J223) -> 472.49 | L224: =SUM(L217:L223) -> 45.76
A225: =A217 -> 1 | B225: =B217 -> 6 | C225: Завтрак 2 | D225: фрукты
D228: итого | F228: =SUM(F225:F227) -> 0 | G228: =SUM(G225:G227) -> 0 | H228: =SUM(H225:H227) -> 0 | I228: =SUM(I225:I227) -> 0 | J228: =SUM(J225:J227) -> 0 | L228: =SUM(L225:L233) -> 0
A229: =A217 -> 1 | B229: =B217 -> 6 | C229: Обед | D229: закуска
D230: 1 блюдо
D231: 2 блюдо
D232: гарнир
D233: напиток
D234: хлеб бел.
D235: хлеб черн.
D238: итого | F238: =SUM(F229:F237) -> 0 | G238: =SUM(G229:G237) -> 0 | H238: =SUM(H229:H237) -> 0 | I238: =SUM(I229:I237) -> 0 | J238: =SUM(J229:J237) -> 0 | L238: =SUM(L235:L243) -> 0
A239: =A217 -> 1 | B239: =B217 -> 6 | C239: Полдник | D239: булочное
D240: напиток
D243: итого | F243: =SUM(F239:F242) -> 0 | G243: =SUM(G239:G242) -> 0 | H243: =SUM(H239:H242) -> 0 | I243: =SUM(I239:I242) -> 0 | J243: =SUM(J239:J242) -> 0 | L243: =SUM(L236:L242) -> 0
A244: =A217 -> 1 | B244: =B217 -> 6 | C244: Ужин | D244: гор.блюдо
D245: гарнир
D246: напиток
D247: хлеб
D250: итого | F250: =SUM(F244:F249) -> 0 | G250: =SUM(G244:G249) -> 0 | H250: =SUM(H244:H249) -> 0 | I250: =SUM(I244:I249) -> 0 | J250: =SUM(J244:J249) -> 0 | L250: =SUM(L244:L252) -> 0
A251: =A217 -> 1 | B251: =B217 -> 6 | C251: Ужин 2 | D251: кисломол.
D252: булочное
D253: напиток
D254: фрукты
D257: итого | F257: =SUM(F251:F256) -> 0 | G257: =SUM(G251:G256) -> 0 | H257: =SUM(H251:H256) -> 0 | I257: =SUM(I251:I256) -> 0 | J257: =SUM(J251:J256) -> 0 | L257: =SUM(L251:L259) -> 0
A258: =A217 -> 1 | B258: =B217 -> 6 | C258: Итого за день: | F258: =F224+F228+F238+F243+F250+F257 -> 570 | G258: =G224+G228+G238+G243+G250+G257 -> 16.39 | H258: =H224+H228+H238+H243+H250+H257 -> 17.92 | I258: =I224+I228+I238+I243+I250+I257 -> 61.41 | J258: =J224+J228+J238+J243+J250+J257 -> 472.49 | L258: =L224+L228+L238+L243+L250+L257 -> 0
A259: 1 | B259: 7 | C259: Завтрак | D259: гор.блюдо
D261: гор.напиток
D262: хлеб
D263: фрукты
D266: итого | F266: =SUM(F259:F265) -> 0 | G266: =SUM(G259:G265) -> 0 | H266: =SUM(H259:H265) -> 0 | I266: =SUM(I259:I265) -> 0 | J266: =SUM(J259:J265) -> 0 | L266: 0
A267: =A259 -> 1 | B267: =B259 -> 7 | C267: Завтрак 2 | D267: фрукты
D270: итого | F270: =SUM(F267:F269) -> 0 | G270: =SUM(G267:G269) -> 0 | H270: =SUM(H267:H269) -> 0 | I270: =SUM(I267:I269) -> 0 | J270: =SUM(J267:J269) -> 0 | L270: =SUM(L267:L275) -> 0
A271: =A259 -> 1 | B271: =B259 -> 7 | C271: Обед | D271: закуска
D272: 1 блюдо
D273: 2 блюдо
D274: гарнир
D275: напиток
D276: хлеб бел.
D277: хлеб черн.
... 223 more rows
